[Event "*** Titled Tuesday Blitz"]
[Site "Chess.com"]
[Date "2021.04.06"]
[Round "4"]
[White "moro182"]
[Black "Beca95"]
[Result "1-0"]
[WhiteElo "2748"]
[BlackElo "2910"]
[TimeControl "180+1"]
[EndTime "10:40:06 PDT"]
[Termination "moro182 won on time"]

1. d4 {[%clk 0:02:39.1]} 1... Nf6 {[%clk 0:02:59.2]} 2. c4 {[%clk 0:02:37.4]}
2... c5 {[%clk 0:02:59.4]} 3. Nf3 {[%clk 0:02:36.3]} 3... e6 {[%clk 0:02:59.1]}
4. g3 {[%clk 0:02:31.6]} 4... cxd4 {[%clk 0:02:58.3]} 5. Nxd4 {[%clk 0:02:32.5]}
5... Qc7 {[%clk 0:02:58.5]} 6. Bg2 {[%clk 0:02:23.5]} 6... Qxc4 {[%clk
0:02:55.3]} 7. O-O {[%clk 0:02:21.7]} 7... Nc6 {[%clk 0:02:54.8]} 8. Nb3 {[%clk
0:02:17.7]} 8... Qg4 {[%clk 0:02:44.3]} 9. Nc3 {[%clk 0:02:16.9]} 9... a6 {[%clk
0:02:42.6]} 10. Bf4 {[%clk 0:02:14.5]} 10... Be7 {[%clk 0:02:35.5]} 11. Rc1
{[%clk 0:02:10.8]} 11... d5 {[%clk 0:01:42.8]} 12. h3 {[%clk 0:02:04.2]} 12...
Qg6 {[%clk 0:01:41.2]} 13. Na4 {[%clk 0:01:44.1]} 13... e5 {[%clk 0:01:27.2]}
14. Bd2 {[%clk 0:01:38.9]} 14... Be6 {[%clk 0:01:26.6]} 15. Nbc5 {[%clk
0:01:34.7]} 15... Bxc5 {[%clk 0:01:25.2]} 16. Nxc5 {[%clk 0:01:33.9]} 16... Bc8
{[%clk 0:01:25.2]} 17. Na4 {[%clk 0:01:04.1]} 17... O-O {[%clk 0:01:20.8]} 18.
Nb6 {[%clk 0:01:03.9]} 18... Rb8 {[%clk 0:01:20.8]} 19. Nxc8 {[%clk 0:00:57.5]}
19... Rbxc8 {[%clk 0:01:19]} 20. e3 {[%clk 0:00:57.8]} 20... e4 {[%clk
0:01:14.5]} 21. Bc3 {[%clk 0:00:55.8]} 21... Rcd8 {[%clk 0:01:12.9]} 22. Qb3
{[%clk 0:00:52]} 22... Rd7 {[%clk 0:01:12.6]} 23. Rfd1 {[%clk 0:00:50.6]} 23...
Rfd8 {[%clk 0:01:12.8]} 24. Rd2 {[%clk 0:00:50]} 24... h5 {[%clk 0:01:12.5]} 25.
h4 {[%clk 0:00:44.5]} 25... Ng4 {[%clk 0:01:10.4]} 26. Rcd1 {[%clk 0:00:44.4]}
26... Qf5 {[%clk 0:01:09.6]} 27. Bh3 {[%clk 0:00:43.8]} 27... Kh7 {[%clk
0:00:54]} 28. a3 {[%clk 0:00:40]} 28... Nce5 {[%clk 0:00:34.4]} 29. Bxe5 {[%clk
0:00:37.1]} 29... Qxe5 {[%clk 0:00:35]} 30. Bxg4 {[%clk 0:00:35.3]} 30... hxg4
{[%clk 0:00:35.9]} 31. Rc1 {[%clk 0:00:33.9]} 31... g5 {[%clk 0:00:35.6]} 32.
hxg5 {[%clk 0:00:32.2]} 32... Qxg5 {[%clk 0:00:35.7]} 33. Kg2 {[%clk 0:00:31.8]}
33... Qf6 {[%clk 0:00:35]} 34. Rh1+ {[%clk 0:00:29.7]} 34... Kg6 {[%clk
0:00:35.1]} 35. Kg1 {[%clk 0:00:24.2]} 35... d4 {[%clk 0:00:30.6]} 36. exd4
{[%clk 0:00:23.9]} 36... Rxd4 {[%clk 0:00:14.3]} 37. Rxd4 {[%clk 0:00:24.6]}
37... Rxd4 {[%clk 0:00:12.4]} 38. Rh4 {[%clk 0:00:24.7]} 38... Kf5 {[%clk
0:00:04.3]} 39. Qe3 {[%clk 0:00:18]} 39... Ke6 {[%clk 0:00:02.4]} 40. Rh6 {[%clk
0:00:17.1]} 40... Rd1+ {[%clk 0:00:01.6]} 41. Kg2 {[%clk 0:00:16.9]} 1-0

[Event "*** Titled Tuesday Blitz"]
[Site "Chess.com"]
[Date "2021.04.06"]
[Round "4"]
[White "AlexPapasimakopoulos"]
[Black "Zkid"]
[Result "1-0"]
[WhiteElo "2624"]
[BlackElo "2838"]
[TimeControl "180+1"]
[EndTime "10:40:06 PDT"]
[Termination "AlexPapasimakopoulos won by resignation"]

1. d4 {[%clk 0:02:57.8]} 1... d5 {[%clk 0:02:59.2]} 2. c4 {[%clk 0:02:45.6]}
2... dxc4 {[%clk 0:03:00.1]} 3. Nf3 {[%clk 0:02:44]} 3... Nf6 {[%clk 0:02:59.9]}
4. e3 {[%clk 0:02:44.2]} 4... e6 {[%clk 0:02:59.3]} 5. Bxc4 {[%clk 0:02:44.3]}
5... c5 {[%clk 0:02:59.1]} 6. O-O {[%clk 0:02:44.3]} 6... a6 {[%clk 0:02:59.3]}
7. Bd3 {[%clk 0:02:43.8]} 7... Nc6 {[%clk 0:02:54.5]} 8. a3 {[%clk 0:02:41.7]}
8... Be7 {[%clk 0:02:43.4]} 9. dxc5 {[%clk 0:02:39.1]} 9... Bxc5 {[%clk
0:02:42.3]} 10. b4 {[%clk 0:02:39.7]} 10... Bd6 {[%clk 0:02:37.9]} 11. Bb2
{[%clk 0:02:40.1]} 11... O-O {[%clk 0:02:38]} 12. Nc3 {[%clk 0:02:40.2]} 12...
Ne5 {[%clk 0:02:34]} 13. Nxe5 {[%clk 0:02:36.1]} 13... Bxe5 {[%clk 0:02:34]} 14.
f4 {[%clk 0:02:36.9]} 14... Bb8 {[%clk 0:02:30.8]} 15. Ne4 {[%clk 0:02:37.1]}
15... Nxe4 {[%clk 0:02:23.4]} 16. Bxe4 {[%clk 0:02:38]} 16... e5 {[%clk
0:02:12.5]} 17. Qxd8 {[%clk 0:02:07.6]} 17... Rxd8 {[%clk 0:02:11.6]} 18. fxe5
{[%clk 0:02:08.5]} 18... Ba7 {[%clk 0:02:06.2]} 19. Rfe1 {[%clk 0:01:54.4]}
19... Rb8 {[%clk 0:02:03.1]} 20. Kf2 {[%clk 0:01:51.6]} 20... Bg4 {[%clk
0:01:58.5]} 21. Bf3 {[%clk 0:01:49.8]} 21... Be6 {[%clk 0:01:43.3]} 22. Rac1
{[%clk 0:01:40.7]} 22... b5 {[%clk 0:01:38.6]} 23. Red1 {[%clk 0:01:39]} 23...
Bc4 {[%clk 0:01:28.2]} 24. Bd4 {[%clk 0:01:37.5]} 24... Rd7 {[%clk 0:01:24.7]}
25. Bxa7 {[%clk 0:01:36.9]} 25... Rxa7 {[%clk 0:01:25.6]} 26. Be2 {[%clk
0:01:31.7]} 26... Be6 {[%clk 0:01:18.6]} 27. Rd6 {[%clk 0:01:30.2]} 27... g5
{[%clk 0:01:16.9]} 28. Rcd1 {[%clk 0:01:16.2]} 28... Kg7 {[%clk 0:01:13.1]} 29.
Rd8 {[%clk 0:01:16.1]} 29... Rbb7 {[%clk 0:01:10.7]} 30. Bf3 {[%clk 0:01:16]}
30... Rc7 {[%clk 0:01:09.3]} 31. Rb8 {[%clk 0:01:11.8]} 31... Rc2+ {[%clk
0:01:05.1]} 32. Kg3 {[%clk 0:01:10.8]} 32... Rc3 {[%clk 0:01:05]} 33. Kf2 {[%clk
0:01:07.1]} 33... Rxa3 {[%clk 0:01:03.6]} 34. Rdd8 {[%clk 0:00:56.4]} 34... Rb3
{[%clk 0:00:51.4]} 35. Rg8+ {[%clk 0:00:51.9]} 35... Kh6 {[%clk 0:00:51.5]} 36.
g4 {[%clk 0:00:41.3]} 36... Rxb4 {[%clk 0:00:47.2]} 37. e4 {[%clk 0:00:41.7]}
37... f6 {[%clk 0:00:23.3]} 38. exf6 {[%clk 0:00:22.2]} 38... Bxg8 {[%clk
0:00:20]} 39. Rxg8 {[%clk 0:00:23.1]} 39... Rc4 {[%clk 0:00:18.3]} 40. h4 {[%clk
0:00:22.7]} 40... Rc5 {[%clk 0:00:18.6]} 41. Ke3 {[%clk 0:00:20.4]} 41... b4
{[%clk 0:00:16.2]} 42. Kd4 {[%clk 0:00:18.9]} 42... Ra5 {[%clk 0:00:07]} 43. e5
{[%clk 0:00:19.3]} 43... Rd7+ {[%clk 0:00:07.2]} 44. Ke4 {[%clk 0:00:19.2]} 1-0

[Event "*** Titled Tuesday Blitz"]
[Site "Chess.com"]
[Date "2021.04.06"]
[Round "4"]
[White "stepakyedael"]
[Black "MustafayevFarid2004"]
[Result "1-0"]
[WhiteElo "2291"]
[BlackElo "2452"]
[TimeControl "180+1"]
[EndTime "10:40:06 PDT"]
[Termination "stepakyedael won by resignation"]

1. d4 {[%clk 0:03:00.9]} 1... Nf6 {[%clk 0:02:59.9]} 2. c4 {[%clk 0:03:00.7]}
2... e6 {[%clk 0:02:59.9]} 3. Nf3 {[%clk 0:03:00.3]} 3... d5 {[%clk 0:02:59.7]}
4. e3 {[%clk 0:02:59.8]} 4... Bb4+ {[%clk 0:02:57.1]} 5. Nc3 {[%clk 0:02:59.1]}
5... O-O {[%clk 0:02:57]} 6. Qc2 {[%clk 0:02:58.3]} 6... c5 {[%clk 0:02:57.3]}
7. dxc5 {[%clk 0:02:57.4]} 7... Bxc5 {[%clk 0:02:56]} 8. a3 {[%clk 0:02:55.8]}
8... a5 {[%clk 0:02:48.7]} 9. Bd3 {[%clk 0:02:52.4]} 9... Nc6 {[%clk 0:02:46.1]}
10. O-O {[%clk 0:02:51]} 10... dxc4 {[%clk 0:02:39.3]} 11. Bxc4 {[%clk
0:02:50.6]} 11... e5 {[%clk 0:02:23.4]} 12. h3 {[%clk 0:02:46.2]} 12... Re8
{[%clk 0:02:13.4]} 13. Rd1 {[%clk 0:02:44.4]} 13... Qe7 {[%clk 0:02:11.2]} 14.
Ng5 {[%clk 0:02:38.4]} 14... Be6 {[%clk 0:02:01.5]} 15. Nxe6 {[%clk 0:02:32.7]}
15... fxe6 {[%clk 0:02:02.3]} 16. b3 {[%clk 0:02:24.3]} 16... Rac8 {[%clk
0:01:51.1]} 17. Bb2 {[%clk 0:02:21.2]} 17... Kh8 {[%clk 0:01:43.1]} 18. Ne4
{[%clk 0:02:18.6]} 18... Ba7 {[%clk 0:01:40.6]} 19. Ng5 {[%clk 0:02:06.2]} 19...
b5 {[%clk 0:01:18.4]} 20. Bxe6 {[%clk 0:01:55.7]} 20... Nd4 {[%clk 0:01:08.8]}
21. Qxc8 {[%clk 0:01:48.3]} 21... Rxc8 {[%clk 0:01:02.1]} 22. Bxc8 {[%clk
0:01:40]} 22... h6 {[%clk 0:00:59.3]} 23. exd4 {[%clk 0:01:31.9]} 23... hxg5
{[%clk 0:00:57.4]} 24. dxe5 {[%clk 0:01:27.4]} 24... Ne4 {[%clk 0:00:57.8]} 25.
Bd4 {[%clk 0:01:22.4]} 25... Bxd4 {[%clk 0:00:44.9]} 26. Rxd4 {[%clk 0:01:22.1]}
26... Qxe5 {[%clk 0:00:41.2]} 27. Rad1 {[%clk 0:01:14.8]} 27... Nc3 {[%clk
0:00:37.6]} 28. Rd8+ {[%clk 0:01:06.1]} 28... Kh7 {[%clk 0:00:30.3]} 29. Rf1
{[%clk 0:00:44.9]} 29... Ne2+ {[%clk 0:00:25.3]} 30. Kh1 {[%clk 0:00:44.1]}
30... Qf6 {[%clk 0:00:21.5]} 31. Rd3 {[%clk 0:00:37.7]} 31... Nf4 {[%clk
0:00:18.8]} 32. Rf3 {[%clk 0:00:35]} 32... Qc6 {[%clk 0:00:18.9]} 33. Bf5+
{[%clk 0:00:32.5]} 33... g6 {[%clk 0:00:18.8]} 34. Bg4 {[%clk 0:00:32.5]} 34...
Qc2 {[%clk 0:00:18.6]} 35. Kh2 {[%clk 0:00:31.6]} 35... a4 {[%clk 0:00:18.1]}
36. bxa4 {[%clk 0:00:30.3]} 36... bxa4 {[%clk 0:00:18.4]} 37. Re1 {[%clk
0:00:27.8]} 37... Qc7 {[%clk 0:00:17.9]} 38. g3 {[%clk 0:00:27.2]} 38... Nd5
{[%clk 0:00:12.7]} 39. Be6 {[%clk 0:00:24.9]} 39... Nb6 {[%clk 0:00:06.9]} 40.
Rf7+ {[%clk 0:00:23]} 1-0

[Event "*** Titled Tuesday Blitz"]
[Site "Chess.com"]
[Date "2021.04.06"]
[Round "4"]
[White "BilodeauA"]
[Black "esapunov"]
[Result "1-0"]
[WhiteElo "2904"]
[BlackElo "2721"]
[TimeControl "180+1"]
[EndTime "10:40:07 PDT"]
[Termination "BilodeauA won by resignation"]

1. d4 {[%clk 0:02:58.9]} 1... Nf6 {[%clk 0:02:59.7]} 2. Nc3 {[%clk 0:02:58.9]}
2... d5 {[%clk 0:02:57.2]} 3. Bf4 {[%clk 0:02:58.2]} 3... a6 {[%clk 0:02:57.3]}
4. e3 {[%clk 0:02:57.9]} 4... b5 {[%clk 0:02:57.5]} 5. h4 {[%clk 0:02:57.5]}
5... c5 {[%clk 0:02:44.6]} 6. dxc5 {[%clk 0:02:56.4]} 6... Nc6 {[%clk
0:02:44.6]} 7. Nf3 {[%clk 0:02:46.2]} 7... e6 {[%clk 0:02:43.5]} 8. Nd4 {[%clk
0:02:27.1]} 8... Bb7 {[%clk 0:01:43.9]} 9. Nxc6 {[%clk 0:02:20.1]} 9... Bxc6
{[%clk 0:01:44.1]} 10. b4 {[%clk 0:02:18.4]} 10... Be7 {[%clk 0:01:34.6]} 11. h5
{[%clk 0:02:04.2]} 11... h6 {[%clk 0:01:30.3]} 12. a3 {[%clk 0:01:57.8]} 12...
O-O {[%clk 0:01:28.7]} 13. Rb1 {[%clk 0:01:54.7]} 13... Re8 {[%clk 0:01:25.2]}
14. Bd3 {[%clk 0:01:35]} 14... e5 {[%clk 0:01:16]} 15. Bxe5 {[%clk 0:01:25.9]}
15... Bxc5 {[%clk 0:01:14.9]} 16. bxc5 {[%clk 0:01:14.1]} 16... Rxe5 {[%clk
0:01:13.8]} 17. Ne2 {[%clk 0:01:14.7]} 17... Qe7 {[%clk 0:01:10.3]} 18. Nd4
{[%clk 0:01:08.1]} 18... Qxc5 {[%clk 0:01:09.1]} 19. Kf1 {[%clk 0:01:04.8]}
19... Bd7 {[%clk 0:01:07.9]} 20. Qf3 {[%clk 0:01:02.8]} 20... Qxa3 {[%clk
0:01:00.1]} 21. Kg1 {[%clk 0:00:58.9]} 21... Qd6 {[%clk 0:00:54.6]} 22. Rh4
{[%clk 0:00:54.4]} 22... Rg5 {[%clk 0:00:48.8]} 23. g3 {[%clk 0:00:36.5]} 23...
Re8 {[%clk 0:00:35.4]} 24. Ra1 {[%clk 0:00:32.6]} 24... Ng4 {[%clk 0:00:27]} 25.
Qf4 {[%clk 0:00:25]} 25... Qb6 {[%clk 0:00:23.6]} 26. Rd1 {[%clk 0:00:20.5]}
26... Nf6 {[%clk 0:00:21.6]} 27. Qf3 {[%clk 0:00:17.2]} 27... b4 {[%clk
0:00:21.1]} 28. Bf5 {[%clk 0:00:16.7]} 28... Bb5 {[%clk 0:00:18.5]} 29. Qf4
{[%clk 0:00:12.4]} 29... a5 {[%clk 0:00:17.8]} 30. Nxb5 {[%clk 0:00:12.4]} 30...
Qxb5 {[%clk 0:00:17.9]} 31. Bd3 {[%clk 0:00:13.1]} 31... Qc5 {[%clk 0:00:16.2]}
32. Ra1 {[%clk 0:00:12.8]} 32... Rge5 {[%clk 0:00:15.1]} 33. Qd4 {[%clk
0:00:12.7]} 33... Qxd4 {[%clk 0:00:14.6]} 34. Rxd4 {[%clk 0:00:13.6]} 34... Ra8
{[%clk 0:00:13.5]} 35. Rxb4 {[%clk 0:00:13.1]} 35... Rxh5 {[%clk 0:00:13.4]} 36.
Rxa5 {[%clk 0:00:08.8]} 36... Rd8 {[%clk 0:00:11.3]} 37. Rb7 {[%clk 0:00:08.4]}
37... Ne4 {[%clk 0:00:10.3]} 38. Bxe4 {[%clk 0:00:07]} 38... dxe4 {[%clk
0:00:10.2]} 39. Rxh5 {[%clk 0:00:07.3]} 1-0

[Event "*** Titled Tuesday Blitz"]
[Site "Chess.com"]
[Date "2021.04.06"]
[Round "4"]
[White "Malev212"]
[Black "XDPS"]
[Result "0-1"]
[WhiteElo "2561"]
[BlackElo "2758"]
[TimeControl "180+1"]
[EndTime "10:40:07 PDT"]
[Termination "XDPS won by resignation"]

1. e4 {[%clk 0:03:00.9]} 1... e5 {[%clk 0:02:59.6]} 2. Nc3 {[%clk 0:03:00.6]}
2... Nf6 {[%clk 0:02:59.1]} 3. f4 {[%clk 0:03:00.3]} 3... d5 {[%clk 0:02:56.6]}
4. fxe5 {[%clk 0:03:00]} 4... Nxe4 {[%clk 0:02:57]} 5. Qf3 {[%clk 0:02:59.9]}
5... Nxc3 {[%clk 0:02:56.8]} 6. dxc3 {[%clk 0:02:59.5]} 6... c5 {[%clk
0:02:51.7]} 7. Bf4 {[%clk 0:02:56.7]} 7... Nc6 {[%clk 0:02:51.8]} 8. O-O-O
{[%clk 0:02:56.4]} 8... Be6 {[%clk 0:02:52]} 9. Bc4 {[%clk 0:02:56.1]} 9... Ne7
{[%clk 0:02:51.6]} 10. Bb5+ {[%clk 0:02:56.1]} 10... Bd7 {[%clk 0:02:42.4]} 11.
Bxd7+ {[%clk 0:02:30.6]} 11... Qxd7 {[%clk 0:02:42.5]} 12. Ne2 {[%clk
0:02:30.9]} 12... O-O-O {[%clk 0:02:27]} 13. Rhf1 {[%clk 0:02:30.6]} 13... Nc6
{[%clk 0:00:35.2]} 14. Bg3 {[%clk 0:02:15.7]} 14... Be7 {[%clk 0:00:35.5]} 15.
Qxf7 {[%clk 0:02:10.3]} 15... Rdf8 {[%clk 0:00:31.9]} 16. e6 {[%clk 0:01:58.8]}
16... Qd8 {[%clk 0:00:26.8]} 17. Qh5 {[%clk 0:01:41.3]} 17... Rxf1 {[%clk
0:00:24.7]} 18. Rxf1 {[%clk 0:01:40.5]} 18... Bf6 {[%clk 0:00:22.7]} 19. Rd1
{[%clk 0:01:35.5]} 19... Bg5+ {[%clk 0:00:13.7]} 20. Kb1 {[%clk 0:01:33.6]}
20... Re8 {[%clk 0:00:11.8]} 21. Qg4 {[%clk 0:01:23.3]} 21... Qe7 {[%clk
0:00:06.4]} 22. Ng1 {[%clk 0:01:09.5]} 22... Bf6 {[%clk 0:00:05.3]} 23. Re1
{[%clk 0:01:07.1]} 23... d4 {[%clk 0:00:05.2]} 24. c4 {[%clk 0:01:05.3]} 24...
b6 {[%clk 0:00:05.1]} 25. Nf3 {[%clk 0:01:05]} 25... Kb7 {[%clk 0:00:05.5]} 26.
a3 {[%clk 0:01:03.1]} 26... a6 {[%clk 0:00:05.9]} 27. Qe4 {[%clk 0:01:02.2]}
27... b5 {[%clk 0:00:06.2]} 28. Nd2 {[%clk 0:00:56.9]} 28... Kb6 {[%clk
0:00:06]} 29. cxb5 {[%clk 0:00:54.2]} 29... axb5 {[%clk 0:00:06.1]} 30. a4
{[%clk 0:00:54.4]} 30... Qa7 {[%clk 0:00:01.3]} 31. b3 {[%clk 0:00:44.8]} 31...
Nb4 {[%clk 0:00:01.6]} 32. Qe2 {[%clk 0:00:39.8]} 32... Qa6 {[%clk 0:00:01.8]}
33. Qxb5+ {[%clk 0:00:36.7]} 33... Qxb5 {[%clk 0:00:02.3]} 34. axb5 {[%clk
0:00:37.3]} 34... Kxb5 {[%clk 0:00:03.2]} 35. Nc4 {[%clk 0:00:37]} 35... Kc6
{[%clk 0:00:03.6]} 36. Nd6 {[%clk 0:00:31.2]} 36... Re7 {[%clk 0:00:03.9]} 37.
Nf5 {[%clk 0:00:30.8]} 37... Re8 {[%clk 0:00:04.3]} 38. Kc1 {[%clk 0:00:28]}
38... Nd5 {[%clk 0:00:04.6]} 39. Kd2 {[%clk 0:00:26.7]} 39... g6 {[%clk
0:00:04.5]} 40. Nh6 {[%clk 0:00:24.5]} 40... Bg5+ {[%clk 0:00:04.5]} 41. Kd3
{[%clk 0:00:23.9]} 41... Bxh6 {[%clk 0:00:05.1]} 0-1

[Event "*** Titled Tuesday Blitz"]
[Site "Chess.com"]
[Date "2021.04.06"]
[Round "4"]
[White "profofchess"]
[Black "vinniethepooh"]
[Result "0-1"]
[WhiteElo "2515"]
[BlackElo "2735"]
[TimeControl "180+1"]
[EndTime "10:40:10 PDT"]
[Termination "vinniethepooh won on time"]

1. e4 {[%clk 0:03:00.9]} 1... c5 {[%clk 0:03:00.3]} 2. Nf3 {[%clk 0:03:00.3]}
2... d6 {[%clk 0:03:00.6]} 3. d4 {[%clk 0:03:00.2]} 3... cxd4 {[%clk 0:03:01.5]}
4. Qxd4 {[%clk 0:03:00.5]} 4... Nc6 {[%clk 0:03:01.3]} 5. Qe3 {[%clk 0:03:00.3]}
5... Nf6 {[%clk 0:02:58.5]} 6. Be2 {[%clk 0:03:00.5]} 6... e5 {[%clk 0:02:57.7]}
7. O-O {[%clk 0:02:59.5]} 7... Be7 {[%clk 0:02:58]} 8. Rd1 {[%clk 0:02:58.3]}
8... O-O {[%clk 0:02:58.5]} 9. h3 {[%clk 0:02:57.4]} 9... Be6 {[%clk 0:02:58.6]}
10. c4 {[%clk 0:02:54.5]} 10... Nb4 {[%clk 0:02:44.2]} 11. Qd2 {[%clk
0:02:37.9]} 11... Qb6 {[%clk 0:02:33.3]} 12. Nc3 {[%clk 0:02:35]} 12... Rac8
{[%clk 0:02:30]} 13. b3 {[%clk 0:02:12.7]} 13... Na6 {[%clk 0:02:12.6]} 14. Qb2
{[%clk 0:01:52.3]} 14... Qc6 {[%clk 0:02:02.3]} 15. Nd5 {[%clk 0:01:30.7]} 15...
Bd8 {[%clk 0:02:00.5]} 16. Bg5 {[%clk 0:01:07.4]} 16... Bxd5 {[%clk 0:01:42.6]}
17. exd5 {[%clk 0:00:58.3]} 17... Qd7 {[%clk 0:01:42.9]} 18. Rac1 {[%clk
0:00:48.4]} 18... Nc5 {[%clk 0:01:43.1]} 19. Qc2 {[%clk 0:00:33.4]} 19... a5
{[%clk 0:01:28.9]} 20. Be3 {[%clk 0:00:33.1]} 20... Re8 {[%clk 0:01:24.4]} 21.
Nd2 {[%clk 0:00:33]} 21... Kh8 {[%clk 0:01:11.6]} 22. Qb1 {[%clk 0:00:32.9]}
22... Ng8 {[%clk 0:01:08.3]} 23. Bg4 {[%clk 0:00:31.8]} 23... Qc7 {[%clk
0:01:01.7]} 24. Bxc8 {[%clk 0:00:31.7]} 24... Qxc8 {[%clk 0:01:02.6]} 25. a3
{[%clk 0:00:31.6]} 25... f5 {[%clk 0:01:00.9]} 26. b4 {[%clk 0:00:26.3]} 26...
axb4 {[%clk 0:00:59.3]} 27. axb4 {[%clk 0:00:26.1]} 27... Na6 {[%clk 0:00:59.9]}
28. c5 {[%clk 0:00:21.1]} 28... f4 {[%clk 0:00:51.9]} 29. cxd6 {[%clk
0:00:20.1]} 29... Qd7 {[%clk 0:00:49]} 30. Bc5 {[%clk 0:00:12.7]} 30... b6
{[%clk 0:00:49.2]} 31. Ne4 {[%clk 0:00:12.6]} 31... Nf6 {[%clk 0:00:45.6]} 32.
Nxf6 {[%clk 0:00:10.7]} 32... gxf6 {[%clk 0:00:46.5]} 33. Qa1 {[%clk 0:00:08.6]}
33... Rg8 {[%clk 0:00:38.1]} 34. Kh2 {[%clk 0:00:05.5]} 34... f3 {[%clk
0:00:29.9]} 35. g3 {[%clk 0:00:04.5]} 35... Qb5 {[%clk 0:00:20.5]} 36. Be3
{[%clk 0:00:04]} 36... Nxb4 {[%clk 0:00:19.9]} 37. Qb1 {[%clk 0:00:03.1]} 37...
Rg6 {[%clk 0:00:17.5]} 38. Qf5 {[%clk 0:00:03]} 38... Qe2 {[%clk 0:00:13.9]} 39.
Rc8 {[%clk 0:00:01.9]} 39... Nc6 {[%clk 0:00:11.5]} 40. dxc6 {[%clk 0:00:01.6]}
40... Kg7 {[%clk 0:00:12.4]} 41. Rxd8 {[%clk 0:00:01.5]} 41... Qxf2+ {[%clk
0:00:13.3]} 0-1

[Event "*** Titled Tuesday Blitz"]
[Site "Chess.com"]
[Date "2021.04.06"]
[Round "4"]
[White "Sadykov_Ramil"]
[Black "grzechu96"]
[Result "1-0"]
[WhiteElo "2507"]
[BlackElo "2642"]
[TimeControl "180+1"]
[EndTime "10:40:10 PDT"]
[Termination "Sadykov_Ramil won on time"]

1. e4 {[%clk 0:03:00.9]} 1... c5 {[%clk 0:02:56.5]} 2. Nf3 {[%clk 0:02:59.1]}
2... e6 {[%clk 0:02:56.7]} 3. d4 {[%clk 0:02:58.6]} 3... cxd4 {[%clk 0:02:57.6]}
4. Nxd4 {[%clk 0:02:59.3]} 4... Nf6 {[%clk 0:02:58.1]} 5. Nc3 {[%clk 0:02:57.4]}
5... d6 {[%clk 0:02:58.4]} 6. g4 {[%clk 0:02:55.9]} 6... h6 {[%clk 0:02:57.9]}
7. Be3 {[%clk 0:02:53]} 7... Nc6 {[%clk 0:02:55.4]} 8. Rg1 {[%clk 0:02:47.7]}
8... Bd7 {[%clk 0:02:53.6]} 9. Be2 {[%clk 0:02:43.6]} 9... Nxd4 {[%clk
0:02:49.5]} 10. Qxd4 {[%clk 0:02:41.7]} 10... Bc6 {[%clk 0:02:48]} 11. O-O-O
{[%clk 0:02:37.1]} 11... e5 {[%clk 0:02:39.2]} 12. Qd2 {[%clk 0:02:29]} 12...
Be7 {[%clk 0:02:04.1]} 13. f3 {[%clk 0:02:15.8]} 13... Qa5 {[%clk 0:02:04.2]}
14. Bc4 {[%clk 0:02:10.2]} 14... Rd8 {[%clk 0:01:53.7]} 15. Kb1 {[%clk
0:01:36.5]} 15... b5 {[%clk 0:01:04.6]} 16. Nxb5 {[%clk 0:01:22.2]} 16... Qxd2
{[%clk 0:01:02]} 17. Rxd2 {[%clk 0:01:23.1]} 17... O-O {[%clk 0:00:30.9]} 18.
Rgd1 {[%clk 0:01:03.5]} 18... a6 {[%clk 0:00:27.8]} 19. Nxd6 {[%clk 0:01:01.4]}
19... Rb8 {[%clk 0:00:19.4]} 20. Bxa6 {[%clk 0:00:48.8]} 20... Nh7 {[%clk
0:00:18.4]} 21. Bc4 {[%clk 0:00:45]} 21... Ng5 {[%clk 0:00:17.6]} 22. Be2 {[%clk
0:00:23.9]} 22... Ne6 {[%clk 0:00:15.7]} 23. Nf5 {[%clk 0:00:12.4]} 23... Bf6
{[%clk 0:00:12]} 24. b3 {[%clk 0:00:08.3]} 24... g6 {[%clk 0:00:12.2]} 25. Nxh6+
{[%clk 0:00:06.7]} 25... Kg7 {[%clk 0:00:12.8]} 26. g5 {[%clk 0:00:04.7]} 26...
Bxg5 {[%clk 0:00:09.4]} 27. Ng4 {[%clk 0:00:04.3]} 27... Bxe3 {[%clk 0:00:08.4]}
28. Nxe3 {[%clk 0:00:05.2]} 28... Nd4 {[%clk 0:00:07.7]} 29. c3 {[%clk
0:00:05.1]} 29... Nb5 {[%clk 0:00:07]} 30. Kb2 {[%clk 0:00:04.8]} 30... Nc7
{[%clk 0:00:05.8]} 31. Bc4 {[%clk 0:00:04.6]} 31... Rh8 {[%clk 0:00:04.7]} 32.
Nd5 {[%clk 0:00:03.4]} 32... Ne6 {[%clk 0:00:03.4]} 33. Ne3 {[%clk 0:00:03.1]}
33... Nf4 {[%clk 0:00:03.1]} 34. Bd5 {[%clk 0:00:03.4]} 1-0

[Event "*** Titled Tuesday Blitz"]
[Site "Chess.com"]
[Date "2021.04.06"]
[Round "4"]
[White "Shankovskyi"]
[Black "ApoIogiA"]
[Result "1-0"]
[WhiteElo "2468"]
[BlackElo "2190"]
[TimeControl "180+1"]
[EndTime "10:40:10 PDT"]
[Termination "Shankovskyi won on time"]

1. e4 {[%clk 0:02:41.8]} 1... c5 {[%clk 0:02:58.4]} 2. Nf3 {[%clk 0:02:41.3]}
2... d6 {[%clk 0:02:58.3]} 3. d4 {[%clk 0:02:41.4]} 3... cxd4 {[%clk 0:02:59.2]}
4. Nxd4 {[%clk 0:02:42.3]} 4... Nf6 {[%clk 0:02:59.8]} 5. Nc3 {[%clk 0:02:40.8]}
5... a6 {[%clk 0:03:00.2]} 6. Bc4 {[%clk 0:02:39.9]} 6... e6 {[%clk 0:03:00.2]}
7. O-O {[%clk 0:02:39.2]} 7... b5 {[%clk 0:02:55.2]} 8. Bd3 {[%clk 0:02:30.3]}
8... Bb7 {[%clk 0:02:54.8]} 9. Bg5 {[%clk 0:02:27.6]} 9... Nbd7 {[%clk
0:02:52.7]} 10. h3 {[%clk 0:02:23.8]} 10... Be7 {[%clk 0:02:52.4]} 11. Kh1
{[%clk 0:02:23.1]} 11... O-O {[%clk 0:02:51.3]} 12. f4 {[%clk 0:02:21.5]} 12...
Nc5 {[%clk 0:02:34.1]} 13. e5 {[%clk 0:02:14.4]} 13... dxe5 {[%clk 0:01:43.7]}
14. fxe5 {[%clk 0:02:15.3]} 14... Nd5 {[%clk 0:01:43.3]} 15. Bxe7 {[%clk
0:02:04.2]} 15... Qxe7 {[%clk 0:01:23.1]} 16. Nxd5 {[%clk 0:02:02.1]} 16... Bxd5
{[%clk 0:01:20.4]} 17. Qh5 {[%clk 0:01:46.6]} 17... Nxd3 {[%clk 0:01:15.8]} 18.
cxd3 {[%clk 0:01:47.5]} 18... Rfc8 {[%clk 0:01:00.5]} 19. Ne2 {[%clk 0:01:40.1]}
19... g6 {[%clk 0:00:51.3]} 20. Qg4 {[%clk 0:01:35.1]} 20... Rc2 {[%clk
0:00:34.2]} 21. b3 {[%clk 0:00:55.9]} 21... Rac8 {[%clk 0:00:28.1]} 22. Rg1
{[%clk 0:00:48.6]} 22... Qc7 {[%clk 0:00:24]} 23. d4 {[%clk 0:00:43.4]} 23...
Ba8 {[%clk 0:00:18.4]} 24. Ng3 {[%clk 0:00:41.4]} 24... Qc6 {[%clk 0:00:08.5]}
25. Nh5 {[%clk 0:00:36.8]} 25... Kf8 {[%clk 0:00:08.5]} 26. Nf6 {[%clk
0:00:35.7]} 26... h5 {[%clk 0:00:08.8]} 27. Qg5 {[%clk 0:00:31.6]} 27... Qc3
{[%clk 0:00:05.2]} 28. Nd7+ {[%clk 0:00:15.1]} 28... Ke8 {[%clk 0:00:04.7]} 29.
Nf6+ {[%clk 0:00:13.5]} 29... Kf8 {[%clk 0:00:05.2]} 30. Nd7+ {[%clk 0:00:13.4]}
30... Kg8 {[%clk 0:00:03.9]} 31. Nf6+ {[%clk 0:00:10.4]} 31... Kg7 {[%clk
0:00:04.2]} 32. Nxh5+ {[%clk 0:00:08.6]} 32... Kf8 {[%clk 0:00:03.3]} 33. Qh6+
{[%clk 0:00:07.5]} 33... Ke7 {[%clk 0:00:02.6]} 34. Nf6 {[%clk 0:00:07.4]} 34...
Qd2 {[%clk 0:00:01.7]} 35. Qg5 {[%clk 0:00:06.8]} 35... Qxg5 {[%clk 0:00:01.8]}
36. Nd5+ {[%clk 0:00:05.5]} 1-0